[Event "January 2 Early 2024"]
[Site "https://www.chess.com"]
[Date "2024.01.02"]
[Round "4"]
[White "Goldin, Roman"]
[Black "Chandra, Vania Vindy"]
[Result "1-0"]
[Board "182"]
[TimeControl "180+1"]
[WhiteFideId "2803860"]
[BlackFideId "7103441"]
[WhiteElo "2436"]
[BlackElo "2181"]
[WhiteTeam "ISR"]
[BlackTeam "INA"]
[WhiteClock "0:02:00"]
[BlackClock "0:00:46"]

1. e4 {[%clk 0:02:59]}  c6 {[%clk 0:02:24]} 2. d4 {[%clk 0:02:57]}  d5 {[%clk 0:02:24]} 3. f3 {[%clk 0:02:56]}  dxe4 {[%clk 0:02:23]} 4. fxe4 {[%clk 0:02:56]}  e5 {[%clk 0:02:18]} 5. Nf3 {[%clk 0:02:56]}  exd4 {[%clk 0:02:08]} 6. Bc4 {[%clk 0:02:56]}  Be6 {[%clk 0:02:06]} 7. Bxe6 {[%clk 0:02:53]}  fxe6 {[%clk 0:02:06]} 8. O-O {[%clk 0:02:53]}  Bc5 {[%clk 0:01:53]} 9. Ng5 {[%clk 0:02:49]}  Qe7 {[%clk 0:01:39]} 10. Rf7 {[%clk 0:02:41]}  Qxf7 {[%clk 0:01:32]} 11. Nxf7 {[%clk 0:02:40]}  Kxf7 {[%clk 0:01:32]} 12. Qh5+ {[%clk 0:02:39]}  g6 {[%clk 0:01:31]} 13. Qxc5 {[%clk 0:02:39]}  Nd7 {[%clk 0:01:31]} 14. Qxd4 {[%clk 0:02:38]}  Ngf6 {[%clk 0:01:31]} 15. e5 {[%clk 0:02:30]}  Rad8 {[%clk 0:01:17]} 16. exf6 {[%clk 0:02:27]}  Nxf6 {[%clk 0:01:18]} 17. Qf4 {[%clk 0:02:14]}  e5 {[%clk 0:01:15]} 18. Qc4+ {[%clk 0:02:12]}  Kg7 {[%clk 0:01:14]} 19. Nc3 {[%clk 0:02:11]}  Rd4 {[%clk 0:01:08]} 20. Qc5 {[%clk 0:02:07]}  Rhd8 {[%clk 0:00:57]} 21. Qe7+ {[%clk 0:02:03]}  Kg8 {[%clk 0:00:46]} 22. Qxf6 {[%clk 0:02:00]} 1-0

[Event "January 2 Early 2024"]
[Site "https://www.chess.com"]
[Date "2024.01.02"]
[Round "4"]
[White "Von Buelow, Georg"]
[Black "Jovic, Stanoje"]
[Result "0-1"]
[Board "183"]
[TimeControl "180+1"]
[WhiteFideId "4620658"]
[BlackFideId "905020"]
[WhiteElo "2180"]
[BlackElo "2433"]
[WhiteTeam "GER"]
[BlackTeam "SRB"]
[WhiteClock "0:01:40"]
[BlackClock "0:02:21"]

1. e4 {[%clk 0:03:00]}  c6 {[%clk 0:02:58]} 2. d4 {[%clk 0:03:00]}  d5 {[%clk 0:02:57]} 3. e5 {[%clk 0:03:00]}  c5 {[%clk 0:02:57]} 4. dxc5 {[%clk 0:03:00]}  e6 {[%clk 0:02:58]} 5. a3 {[%clk 0:03:00]}  Bxc5 {[%clk 0:02:58]} 6. b4 {[%clk 0:02:59]}  Be7 {[%clk 0:02:56]} 7. Qg4 {[%clk 0:02:55]}  g5 {[%clk 0:02:52]} 8. Bb2 {[%clk 0:02:45]}  h5 {[%clk 0:02:51]} 9. Qd1 {[%clk 0:02:45]}  Bd7 {[%clk 0:02:44]} 10. Ne2 {[%clk 0:02:29]}  Nc6 {[%clk 0:02:40]} 11. Nbc3 {[%clk 0:02:21]}  a6 {[%clk 0:02:31]} 12. Na4 {[%clk 0:02:14]}  Qc7 {[%clk 0:02:26]} 13. c4 {[%clk 0:01:40]}  dxc4 {[%clk 0:02:21]} 0-1

[Event "January 2 Early 2024"]
[Site "https://www.chess.com"]
[Date "2024.01.02"]
[Round "4"]
[White "Gabdushev, Ruslan"]
[Black "Guzman Lozano, Campo Elias"]
[Result "1-0"]
[Board "184"]
[TimeControl "180+1"]
[WhiteFideId "4137833"]
[BlackFideId "4403746"]
[WhiteElo "2431"]
[BlackElo "2180"]
[WhiteTeam "RUS"]
[BlackTeam "COL"]
[WhiteClock "0:01:49"]
[BlackClock "0:00:15"]

1. b3 {[%clk 0:02:59]}  e5 {[%clk 0:02:58]} 2. Bb2 {[%clk 0:02:59]}  Nc6 {[%clk 0:02:58]} 3. e3 {[%clk 0:02:59]}  Nf6 {[%clk 0:02:58]} 4. Bb5 {[%clk 0:02:59]}  Bd6 {[%clk 0:02:57]} 5. Na3 {[%clk 0:02:59]}  O-O {[%clk 0:02:53]} 6. Nc4 {[%clk 0:02:58]}  Re8 {[%clk 0:02:53]} 7. Nxd6 {[%clk 0:02:56]}  cxd6 {[%clk 0:02:52]} 8. Ne2 {[%clk 0:02:50]}  a6 {[%clk 0:02:49]} 9. Bxc6 {[%clk 0:02:46]}  dxc6 {[%clk 0:02:46]} 10. O-O {[%clk 0:02:45]}  d5 {[%clk 0:02:46]} 11. f4 {[%clk 0:02:45]}  e4 {[%clk 0:02:43]} 12. Ng3 {[%clk 0:02:43]}  Bg4 {[%clk 0:02:29]} 13. Bxf6 {[%clk 0:02:41]}  Bxd1 {[%clk 0:02:18]} 14. Bxd8 {[%clk 0:02:40]}  Bxc2 {[%clk 0:02:18]} 15. Bb6 {[%clk 0:02:35]}  a5 {[%clk 0:02:12]} 16. Rfc1 {[%clk 0:02:33]}  Bd3 {[%clk 0:02:09]} 17. a4 {[%clk 0:02:27]}  Ra6 {[%clk 0:02:07]} 18. Bd4 {[%clk 0:02:26]}  f6 {[%clk 0:01:51]} 19. Kf2 {[%clk 0:02:24]}  Kf7 {[%clk 0:01:45]} 20. Ke1 {[%clk 0:02:24]}  Rh8 {[%clk 0:01:43]} 21. Nh1 {[%clk 0:02:23]}  h5 {[%clk 0:01:43]} 22. Nf2 {[%clk 0:02:23]}  Rh6 {[%clk 0:01:30]} 23. Nxd3 {[%clk 0:02:22]}  exd3 {[%clk 0:01:28]} 24. Rc3 {[%clk 0:02:22]}  g5 {[%clk 0:01:28]} 25. fxg5 {[%clk 0:02:20]}  fxg5 {[%clk 0:01:27]} 26. Rxd3 {[%clk 0:02:20]}  Re6 {[%clk 0:01:24]} 27. Kf2 {[%clk 0:02:15]}  Ra8 {[%clk 0:01:22]} 28. Rf1 {[%clk 0:02:13]}  Kg6 {[%clk 0:01:22]} 29. Ke2 {[%clk 0:02:11]}  Rc8 {[%clk 0:01:15]} 30. Bc5 {[%clk 0:02:07]}  Re4 {[%clk 0:01:07]} 31. Rf8 {[%clk 0:02:02]}  Rxf8 {[%clk 0:01:04]} 32. Bxf8 {[%clk 0:02:01]}  Kf5 {[%clk 0:00:56]} 33. Bc5 {[%clk 0:02:00]}  Re6 {[%clk 0:00:50]} 34. Bb6 {[%clk 0:01:59]}  Rf6 {[%clk 0:00:39]} 35. Bxa5 {[%clk 0:01:57]}  Ke6 {[%clk 0:00:39]} 36. Bd8 {[%clk 0:01:55]}  Rf5 {[%clk 0:00:38]} 37. Rc3 {[%clk 0:01:52]}  Kd7 {[%clk 0:00:37]} 38. Bb6 {[%clk 0:01:52]}  Re5 {[%clk 0:00:29]} 39. Bd4 {[%clk 0:01:50]}  Re8 {[%clk 0:00:26]} 40. Rc1 {[%clk 0:01:50]}  Rb8 {[%clk 0:00:15]} 41. a5 {[%clk 0:01:49]} 1-0

[Event "January 2 Early 2024"]
[Site "https://www.chess.com"]
[Date "2024.01.02"]
[Round "4"]
[White "Yushko, Olga"]
[Black "Bashirli, Saadat"]
[Result "0-1"]
[Board "185"]
[TimeControl "180+1"]
[WhiteFideId "14114500"]
[BlackFideId "13429990"]
[WhiteElo "2178"]
[BlackElo "2429"]
[WhiteTeam "UKR"]
[BlackTeam "AZE"]
[WhiteClock "0:00:00"]
[BlackClock "0:00:58"]

1. d4 {[%clk 0:02:56]}  Nf6 {[%clk 0:02:58]} 2. c4 {[%clk 0:02:56]}  g6 {[%clk 0:02:57]} 3. Nf3 {[%clk 0:02:56]}  Bg7 {[%clk 0:02:57]} 4. Nc3 {[%clk 0:02:56]}  c6 {[%clk 0:02:56]} 5. Bg5 {[%clk 0:02:57]}  d5 {[%clk 0:02:55]} 6. e3 {[%clk 0:02:56]}  Bf5 {[%clk 0:02:54]} 7. Be2 {[%clk 0:02:57]}  O-O {[%clk 0:02:54]} 8. O-O {[%clk 0:02:57]}  Nbd7 {[%clk 0:02:53]} 9. a3 {[%clk 0:02:23]}  dxc4 {[%clk 0:02:51]} 10. Bxc4 {[%clk 0:02:23]}  Qc7 {[%clk 0:02:47]} 11. Rc1 {[%clk 0:02:20]}  Rac8 {[%clk 0:02:43]} 12. b4 {[%clk 0:02:17]}  Qb8 {[%clk 0:02:40]} 13. Bf4 {[%clk 0:02:15]}  Qa8 {[%clk 0:02:39]} 14. h3 {[%clk 0:02:12]}  Ne4 {[%clk 0:02:38]} 15. Qb3 {[%clk 0:01:55]}  Nb6 {[%clk 0:02:10]} 16. Be2 {[%clk 0:01:05]}  Nxc3 {[%clk 0:02:07]} 17. Rxc3 {[%clk 0:01:00]}  Nd5 {[%clk 0:02:06]} 18. Rcc1 {[%clk 0:01:01]}  Nxf4 {[%clk 0:02:06]} 19. exf4 {[%clk 0:01:02]}  Qb8 {[%clk 0:02:05]} 20. Qe3 {[%clk 0:00:56]}  Bh6 {[%clk 0:01:55]} 21. Qxe7 {[%clk 0:00:47]}  Bxf4 {[%clk 0:01:53]} 22. Rce1 {[%clk 0:00:42]}  Rfe8 {[%clk 0:01:39]} 23. Qc5 {[%clk 0:00:31]}  Bd6 {[%clk 0:01:37]} 24. Qc3 {[%clk 0:00:29]}  Re7 {[%clk 0:01:31]} 25. Bc4 {[%clk 0:00:28]}  Rce8 {[%clk 0:01:27]} 26. Rxe7 {[%clk 0:00:26]}  Rxe7 {[%clk 0:01:26]} 27. Qb3 {[%clk 0:00:23]}  Qe8 {[%clk 0:01:19]} 28. Ng5 {[%clk 0:00:22]}  h6 {[%clk 0:01:16]} 29. Nf3 {[%clk 0:00:21]}  b5 {[%clk 0:01:09]} 30. Bd3 {[%clk 0:00:18]}  Be6 {[%clk 0:01:09]} 31. Qc2 {[%clk 0:00:18]}  Bd5 {[%clk 0:01:07]} 32. Bxg6 {[%clk 0:00:17]}  fxg6 {[%clk 0:01:07]} 33. Nh4 {[%clk 0:00:13]}  Kg7 {[%clk 0:01:04]} 34. Qc3 {[%clk 0:00:00]}  Qf7 {[%clk 0:00:58]} 0-1

[Event "January 2 Early 2024"]
[Site "https://www.chess.com"]
[Date "2024.01.02"]
[Round "4"]
[White "Mayaud, Raphael"]
[Black "KSho99"]
[Result "1-0"]
[Board "188"]
[TimeControl "180+1"]
[WhiteFideId "627151"]
[WhiteElo "2418"]
[BlackElo "2147"]
[WhiteTeam "FRA"]
[WhiteClock "0:01:08"]
[BlackClock "0:00:00"]

1. d4 {[%clk 0:03:00]}  e6 {[%clk 0:02:59]} 2. Nf3 {[%clk 0:02:59]}  f5 {[%clk 0:02:58]} 3. g3 {[%clk 0:02:58]}  Nf6 {[%clk 0:02:58]} 4. Bg2 {[%clk 0:02:59]}  d5 {[%clk 0:02:58]} 5. O-O {[%clk 0:02:59]}  Be7 {[%clk 0:02:52]} 6. c4 {[%clk 0:02:53]}  Ne4 {[%clk 0:02:50]} 7. Nc3 {[%clk 0:02:53]}  Nc6 {[%clk 0:02:39]} 8. Qb3 {[%clk 0:02:35]}  Na5 {[%clk 0:02:05]} 9. Qa4+ {[%clk 0:02:31]}  c6 {[%clk 0:01:45]} 10. Ne5 {[%clk 0:02:09]}  Bf6 {[%clk 0:01:16]} 11. cxd5 {[%clk 0:01:31]}  exd5 {[%clk 0:01:13]} 12. f4 {[%clk 0:01:25]}  Qb6 {[%clk 0:00:40]} 13. e3 {[%clk 0:01:19]}  Be6 {[%clk 0:00:20]} 14. Qc2 {[%clk 0:01:13]}  O-O {[%clk 0:00:14]} 15. Kh1 {[%clk 0:01:13]}  Rac8 {[%clk 0:00:08]} 16. Na4 {[%clk 0:01:08]}  Qd8 {[%clk 0:00:08]} 17. Nc5 {[%clk 0:01:08]}  Nxc5 {[%clk 0:00:05]} 18. Qxc5 {[%clk 0:01:08]}  b6 {[%clk 0:00:00]} 19. Qc2 {[%clk 0:01:08]} 1-0

[Event "January 2 Early 2024"]
[Site "https://www.chess.com"]
[Date "2024.01.02"]
[Round "4"]
[White "Seletsky, Grigory"]
[Black "Gopal, K.N."]
[Result "1-0"]
[Board "189"]
[TimeControl "180+1"]
[WhiteFideId "14112191"]
[BlackFideId "5001447"]
[WhiteElo "2416"]
[BlackElo "2142"]
[WhiteTeam "UKR"]
[BlackTeam "IND"]
[WhiteClock "0:01:22"]
[BlackClock "0:00:26"]

1. e4 {[%clk 0:02:50]}  c5 {[%clk 0:02:58]} 2. Nf3 {[%clk 0:02:47]}  d6 {[%clk 0:02:59]} 3. d4 {[%clk 0:02:47]}  cxd4 {[%clk 0:02:59]} 4. Nxd4 {[%clk 0:02:47]}  Nf6 {[%clk 0:02:59]} 5. Nc3 {[%clk 0:02:48]}  a6 {[%clk 0:02:55]} 6. f3 {[%clk 0:02:47]}  b5 {[%clk 0:02:53]} 7. Be3 {[%clk 0:02:47]}  Bb7 {[%clk 0:02:53]} 8. Qd2 {[%clk 0:02:48]}  Nbd7 {[%clk 0:02:49]} 9. O-O-O {[%clk 0:02:48]}  e6 {[%clk 0:02:46]} 10. Kb1 {[%clk 0:02:49]}  Be7 {[%clk 0:02:42]} 11. g4 {[%clk 0:02:49]}  h6 {[%clk 0:02:41]} 12. h4 {[%clk 0:02:50]}  b4 {[%clk 0:02:39]} 13. Nce2 {[%clk 0:02:47]}  d5 {[%clk 0:02:37]} 14. exd5 {[%clk 0:02:46]}  Nxd5 {[%clk 0:02:36]} 15. Bf2 {[%clk 0:02:46]}  a5 {[%clk 0:02:19]} 16. Nc1 {[%clk 0:02:35]}  a4 {[%clk 0:02:06]} 17. Bc4 {[%clk 0:02:31]}  N7b6 {[%clk 0:02:02]} 18. Bxd5 {[%clk 0:02:29]}  Nxd5 {[%clk 0:02:00]} 19. Nce2 {[%clk 0:02:29]}  Rb8 {[%clk 0:01:54]} 20. Ka1 {[%clk 0:02:26]}  a3 {[%clk 0:01:49]} 21. b3 {[%clk 0:02:20]}  Bf6 {[%clk 0:01:47]} 22. Kb1 {[%clk 0:02:21]}  Qe7 {[%clk 0:01:38]} 23. c4 {[%clk 0:02:20]}  bxc3 {[%clk 0:01:36]} 24. Nxc3 {[%clk 0:02:21]}  Nxc3+ {[%clk 0:01:25]} 25. Qxc3 {[%clk 0:02:20]}  O-O {[%clk 0:01:20]} 26. g5 {[%clk 0:02:12]}  hxg5 {[%clk 0:01:19]} 27. hxg5 {[%clk 0:02:13]}  Bxg5 {[%clk 0:01:17]} 28. Qd3 {[%clk 0:01:51]}  g6 {[%clk 0:01:08]} 29. Bg3 {[%clk 0:01:36]}  Rbd8 {[%clk 0:01:05]} 30. Be5 {[%clk 0:01:29]}  Bf6 {[%clk 0:01:01]} 31. Qe3 {[%clk 0:01:30]}  Bxe5 {[%clk 0:00:28]} 32. Qxe5 {[%clk 0:01:24]}  Rd5 {[%clk 0:00:26]} 33. Qh8# {[%clk 0:01:22]} 1-0

[Event "January 2 Early 2024"]
[Site "https://www.chess.com"]
[Date "2024.01.02"]
[Round "4"]
[White "Mazurkiewicz, Michal"]
[Black "th3d4rkness"]
[Result "0-1"]
[Board "190"]
[TimeControl "180+1"]
[WhiteFideId "1124943"]
[WhiteElo "2412"]
[BlackElo "2133"]
[WhiteTeam "POL"]
[WhiteClock "0:00:00"]
[BlackClock "0:00:47"]

1. e4 {[%clk 0:02:59]}  c5 {[%clk 0:02:58]} 2. Nf3 {[%clk 0:03:00]}  Nc6 {[%clk 0:02:58]} 3. g3 {[%clk 0:03:00]}  g6 {[%clk 0:02:56]} 4. Bg2 {[%clk 0:03:00]}  Bg7 {[%clk 0:02:56]} 5. O-O {[%clk 0:03:00]}  d6 {[%clk 0:02:55]} 6. c3 {[%clk 0:02:59]}  e5 {[%clk 0:02:51]} 7. h3 {[%clk 0:02:59]}  Nge7 {[%clk 0:02:50]} 8. Na3 {[%clk 0:02:56]}  O-O {[%clk 0:02:49]} 9. d4 {[%clk 0:02:55]}  cxd4 {[%clk 0:02:45]} 10. cxd4 {[%clk 0:02:55]}  h6 {[%clk 0:02:38]} 11. d5 {[%clk 0:02:54]}  Nb8 {[%clk 0:02:37]} 12. Be3 {[%clk 0:02:51]}  a6 {[%clk 0:02:36]} 13. Nc4 {[%clk 0:02:50]}  b5 {[%clk 0:02:18]} 14. Nb6 {[%clk 0:02:49]}  Ra7 {[%clk 0:02:17]} 15. Nxc8 {[%clk 0:02:49]}  Nxc8 {[%clk 0:02:17]} 16. Bxa7 {[%clk 0:02:49]}  Nxa7 {[%clk 0:02:18]} 17. a4 {[%clk 0:02:46]}  b4 {[%clk 0:02:16]} 18. a5 {[%clk 0:02:44]}  Nd7 {[%clk 0:02:14]} 19. Qd2 {[%clk 0:02:42]}  Qb8 {[%clk 0:02:13]} 20. Ra4 {[%clk 0:02:39]}  b3 {[%clk 0:01:58]} 21. Rb4 {[%clk 0:02:36]}  Nb5 {[%clk 0:01:58]} 22. Rxb3 {[%clk 0:02:24]}  Nc5 {[%clk 0:01:58]} 23. Rb4 {[%clk 0:02:20]}  f5 {[%clk 0:01:57]} 24. Nh4 {[%clk 0:02:19]}  Rf6 {[%clk 0:01:49]} 25. Rc1 {[%clk 0:01:37]}  Qd8 {[%clk 0:01:45]} 26. Rbc4 {[%clk 0:01:21]}  Nd4 {[%clk 0:01:34]} 27. Qe1 {[%clk 0:00:43]}  Kh7 {[%clk 0:01:27]} 28. exf5 {[%clk 0:00:20]}  gxf5 {[%clk 0:01:23]} 29. Nf3 {[%clk 0:00:20]}  Nxf3+ {[%clk 0:01:17]} 30. Bxf3 {[%clk 0:00:20]}  Nd3 {[%clk 0:01:17]} 31. Qd2 {[%clk 0:00:19]}  Nxc1 {[%clk 0:01:17]} 32. Qxc1 {[%clk 0:00:20]}  Qxa5 {[%clk 0:01:17]} 33. Rc8 {[%clk 0:00:17]}  e4 {[%clk 0:01:13]} 34. Bh5 {[%clk 0:00:17]}  Qxd5 {[%clk 0:01:09]} 35. Be2 {[%clk 0:00:09]}  f4 {[%clk 0:01:09]} 36. Bc4 {[%clk 0:00:09]}  Qf5 {[%clk 0:01:05]} 37. Bg8+ {[%clk 0:00:08]}  Kg6 {[%clk 0:01:05]} 38. g4 {[%clk 0:00:08]}  Qe5 {[%clk 0:00:58]} 39. Qc4 {[%clk 0:00:08]}  e3 {[%clk 0:00:51]} 40. Qd3+ {[%clk 0:00:06]}  Kg5 {[%clk 0:00:51]} 41. fxe3 {[%clk 0:00:02]}  fxe3 {[%clk 0:00:50]} 42. Rc1 {[%clk 0:00:00]}  Rf2 {[%clk 0:00:47]} 0-1

[Event "January 2 Early 2024"]
[Site "https://www.chess.com"]
[Date "2024.01.02"]
[Round "4"]
[White "Z_Chess6"]
[Black "Mikhalsky, Vladimir"]
[Result "1-0"]
[Board "193"]
[TimeControl "180+1"]
[BlackFideId "14144352"]
[WhiteElo "2027"]
[BlackElo "2405"]
[BlackTeam "UKR"]
[WhiteClock "0:00:03"]
[BlackClock "0:00:00"]

1. d4 {[%clk 0:03:00]}  g6 {[%clk 0:02:55]} 2. c4 {[%clk 0:03:00]}  Bg7 {[%clk 0:02:52]} 3. e4 {[%clk 0:03:00]}  d6 {[%clk 0:02:51]} 4. Nc3 {[%clk 0:03:00]}  Nf6 {[%clk 0:02:52]} 5. Be2 {[%clk 0:02:58]}  O-O {[%clk 0:02:52]} 6. Be3 {[%clk 0:02:58]}  e5 {[%clk 0:02:51]} 7. Nf3 {[%clk 0:02:58]}  Ng4 {[%clk 0:02:50]} 8. Bg5 {[%clk 0:02:58]}  f6 {[%clk 0:02:50]} 9. Bh4 {[%clk 0:02:58]}  Nc6 {[%clk 0:02:50]} 10. d5 {[%clk 0:02:56]}  Ne7 {[%clk 0:02:46]} 11. Nd2 {[%clk 0:02:55]}  h5 {[%clk 0:02:44]} 12. h3 {[%clk 0:02:43]}  Nh6 {[%clk 0:02:43]} 13. Qc2 {[%clk 0:02:31]}  a5 {[%clk 0:02:33]} 14. O-O-O {[%clk 0:02:15]}  g5 {[%clk 0:02:33]} 15. Bg3 {[%clk 0:02:15]}  h4 {[%clk 0:02:33]} 16. Bh2 {[%clk 0:02:15]}  Ng6 {[%clk 0:02:32]} 17. Kb1 {[%clk 0:01:44]}  f5 {[%clk 0:02:20]} 18. f3 {[%clk 0:01:37]}  Nf4 {[%clk 0:02:18]} 19. Bxf4 {[%clk 0:01:36]}  exf4 {[%clk 0:02:18]} 20. Bd3 {[%clk 0:01:23]}  Bd7 {[%clk 0:02:14]} 21. Rhe1 {[%clk 0:01:20]}  a4 {[%clk 0:02:12]} 22. a3 {[%clk 0:01:12]}  Ra6 {[%clk 0:01:59]} 23. c5 {[%clk 0:01:01]}  Ra5 {[%clk 0:01:44]} 24. cxd6 {[%clk 0:01:01]}  cxd6 {[%clk 0:01:43]} 25. Nc4 {[%clk 0:00:54]}  Ra6 {[%clk 0:01:39]} 26. e5 {[%clk 0:00:47]}  dxe5 {[%clk 0:01:30]} 27. Nxe5 {[%clk 0:00:47]}  Rb6 {[%clk 0:01:17]} 28. Bc4 {[%clk 0:00:39]}  Kh7 {[%clk 0:01:13]} 29. d6 {[%clk 0:00:29]}  Rf6 {[%clk 0:01:07]} 30. Nd5 {[%clk 0:00:26]}  Rfxd6 {[%clk 0:01:03]} 31. Nxb6 {[%clk 0:00:26]}  Qxb6 {[%clk 0:00:29]} 32. Nxd7 {[%clk 0:00:23]}  Qa5 {[%clk 0:00:20]} 33. Rxd6 {[%clk 0:00:19]}  Qxe1+ {[%clk 0:00:20]} 34. Rd1 {[%clk 0:00:20]}  Qe7 {[%clk 0:00:13]} 35. Nb6 {[%clk 0:00:15]}  Qf6 {[%clk 0:00:11]} 36. Nd5 {[%clk 0:00:13]}  Qe5 {[%clk 0:00:11]} 37. Nc3 {[%clk 0:00:06]}  Ng8 {[%clk 0:00:10]} 38. Rd5 {[%clk 0:00:05]}  Qe1+ {[%clk 0:00:09]} 39. Qd1 {[%clk 0:00:05]}  Qf2 {[%clk 0:00:08]} 40. Qc2 {[%clk 0:00:03]}  Qg1+ {[%clk 0:00:07]} 41. Ka2 {[%clk 0:00:03]}  Ne7 {[%clk 0:00:06]} 42. Rxf5 {[%clk 0:00:03]}  Nxf5 {[%clk 0:00:06]} 43. Qxf5+ {[%clk 0:00:04]}  Kh6 {[%clk 0:00:06]} 44. Qe6+ {[%clk 0:00:03]}  Kh7 {[%clk 0:00:06]} 45. Bd3+ {[%clk 0:00:03]}  Kh8 {[%clk 0:00:00]} 46. Qe8+ {[%clk 0:00:03]} 1-0

[Event "January 2 Early 2024"]
[Site "https://www.chess.com"]
[Date "2024.01.02"]
[Round "4"]
[White "Cornelison, Paul"]
[Black "VictMin"]
[Result "0-1"]
[Board "196"]
[TimeControl "180+1"]
[WhiteFideId "2004186"]
[WhiteElo "1966"]
[BlackElo "2029"]
[WhiteTeam "USA"]
[WhiteClock "0:00:16"]
[BlackClock "0:00:28"]

1. e4 {[%clk 0:03:00]}  c6 {[%clk 0:02:59]} 2. d4 {[%clk 0:03:00]}  d5 {[%clk 0:02:59]} 3. Nc3 {[%clk 0:03:01]}  dxe4 {[%clk 0:02:57]} 4. f3 {[%clk 0:03:01]}  e5 {[%clk 0:02:51]} 5. d5 {[%clk 0:03:00]}  Nf6 {[%clk 0:02:48]} 6. fxe4 {[%clk 0:02:59]}  Bb4 {[%clk 0:02:43]} 7. Bg5 {[%clk 0:02:53]}  cxd5 {[%clk 0:02:35]} 8. Bxf6 {[%clk 0:02:48]}  Qxf6 {[%clk 0:02:22]} 9. Qxd5 {[%clk 0:02:40]}  O-O {[%clk 0:02:14]} 10. O-O-O {[%clk 0:02:36]}  Nc6 {[%clk 0:02:13]} 11. Nf3 {[%clk 0:02:28]}  Bxc3 {[%clk 0:01:50]} 12. bxc3 {[%clk 0:02:23]}  Rd8 {[%clk 0:01:41]} 13. Qc5 {[%clk 0:02:14]}  Rxd1+ {[%clk 0:01:40]} 14. Kxd1 {[%clk 0:02:13]}  Bg4 {[%clk 0:01:36]} 15. Be2 {[%clk 0:02:05]}  Rd8+ {[%clk 0:01:35]} 16. Ke1 {[%clk 0:02:04]}  Qf4 {[%clk 0:01:24]} 17. Rf1 {[%clk 0:01:52]}  Qxe4 {[%clk 0:01:18]} 18. Kf2 {[%clk 0:01:48]}  Bxf3 {[%clk 0:01:14]} 19. gxf3 {[%clk 0:01:40]}  Qxc2 {[%clk 0:01:13]} 20. Qe3 {[%clk 0:01:32]}  Rd2 {[%clk 0:01:10]} 21. Re1 {[%clk 0:01:23]}  h6 {[%clk 0:01:06]} 22. a3 {[%clk 0:01:13]}  a6 {[%clk 0:01:05]} 23. h4 {[%clk 0:01:00]}  Qb2 {[%clk 0:00:56]} 24. a4 {[%clk 0:00:57]}  Rc2 {[%clk 0:00:45]} 25. c4 {[%clk 0:00:35]}  Qc3 {[%clk 0:00:44]} 26. Qxc3 {[%clk 0:00:26]}  Rxc3 {[%clk 0:00:45]} 27. Rb1 {[%clk 0:00:25]}  Na5 {[%clk 0:00:44]} 28. Rb6 {[%clk 0:00:22]}  f6 {[%clk 0:00:43]} 29. h5 {[%clk 0:00:21]}  Kf7 {[%clk 0:00:41]} 30. Rd6 {[%clk 0:00:20]}  Ke7 {[%clk 0:00:41]} 31. c5 {[%clk 0:00:20]}  Rxc5 {[%clk 0:00:39]} 32. Rb6 {[%clk 0:00:20]}  Rc2 {[%clk 0:00:38]} 33. Ke3 {[%clk 0:00:19]}  Kd7 {[%clk 0:00:37]} 34. Bd3 {[%clk 0:00:19]}  Rc3 {[%clk 0:00:37]} 35. Rb4 {[%clk 0:00:18]}  Rc6 {[%clk 0:00:37]} 36. Be4 {[%clk 0:00:17]}  Rd6 {[%clk 0:00:37]} 37. Bxb7 {[%clk 0:00:16]}  Ke7 {[%clk 0:00:34]} 38. Bxa6 {[%clk 0:00:16]}  Rd7 {[%clk 0:00:30]} 39. Bd3 {[%clk 0:00:16]}  Nc6 {[%clk 0:00:30]} 40. Rb6 {[%clk 0:00:15]}  Rc7 {[%clk 0:00:30]} 41. Bb5 {[%clk 0:00:14]}  Nd4 {[%clk 0:00:30]} 42. Rb8 {[%clk 0:00:14]}  Rc3+ {[%clk 0:00:29]} 43. Ke4 {[%clk 0:00:14]}  Nxb5 {[%clk 0:00:29]} 44. axb5 {[%clk 0:00:15]}  Rb3 {[%clk 0:00:30]} 45. b6 {[%clk 0:00:15]}  Ke6 {[%clk 0:00:28]} 46. Rg8 {[%clk 0:00:15]}  Kf7 {[%clk 0:00:28]} 47. Rb8 {[%clk 0:00:15]}  Ke6 {[%clk 0:00:28]} 48. b7 {[%clk 0:00:16]}  f5# {[%clk 0:00:28]} 0-1

[Event "January 2 Early 2024"]
[Site "https://www.chess.com"]
[Date "2024.01.02"]
[Round "4"]
[White "Volkov, Sergei"]
[Black "Murthy, Pappu"]
[Result "1-0"]
[Board "197"]
[TimeControl "180+1"]
[WhiteFideId "4176588"]
[BlackFideId "2013401"]
[WhiteElo "2546"]
[BlackElo "1989"]
[WhiteTeam "RUS"]
[BlackTeam "USA"]
[WhiteClock "0:00:18"]
[BlackClock "0:00:00"]

1. d4 {[%clk 0:02:58]}  Nf6 {[%clk 0:02:59]} 2. Nf3 {[%clk 0:02:58]}  d5 {[%clk 0:02:58]} 3. Bf4 {[%clk 0:02:58]}  c5 {[%clk 0:02:58]} 4. e3 {[%clk 0:02:58]}  Nc6 {[%clk 0:02:58]} 5. c3 {[%clk 0:02:58]}  Qb6 {[%clk 0:02:57]} 6. Qc2 {[%clk 0:02:58]}  g6 {[%clk 0:02:54]} 7. Nbd2 {[%clk 0:02:57]}  Bf5 {[%clk 0:02:54]} 8. dxc5 {[%clk 0:02:57]}  Qxc5 {[%clk 0:02:36]} 9. Qb3 {[%clk 0:02:56]}  Bg7 {[%clk 0:02:17]} 10. Qxb7 {[%clk 0:02:53]}  O-O {[%clk 0:02:16]} 11. Nb3 {[%clk 0:02:53]}  Qb6 {[%clk 0:02:03]} 12. Ba6 {[%clk 0:02:51]}  Na5 {[%clk 0:01:39]} 13. Qxb6 {[%clk 0:02:00]}  axb6 {[%clk 0:01:39]} 14. Nxa5 {[%clk 0:02:01]}  Rxa6 {[%clk 0:01:34]} 15. Nc6 {[%clk 0:01:59]}  Re8 {[%clk 0:01:25]} 16. O-O {[%clk 0:01:49]}  h5 {[%clk 0:01:21]} 17. Rfd1 {[%clk 0:01:46]}  e6 {[%clk 0:01:17]} 18. Be5 {[%clk 0:01:27]}  Bg4 {[%clk 0:01:12]} 19. h3 {[%clk 0:01:22]}  Bxf3 {[%clk 0:01:11]} 20. gxf3 {[%clk 0:01:23]}  b5 {[%clk 0:01:03]} 21. Nb4 {[%clk 0:01:14]}  Ra4 {[%clk 0:01:00]} 22. Bxf6 {[%clk 0:01:05]}  Bxf6 {[%clk 0:00:56]} 23. Rac1 {[%clk 0:00:59]}  Rc8 {[%clk 0:00:46]} 24. a3 {[%clk 0:00:59]}  Ra7 {[%clk 0:00:38]} 25. f4 {[%clk 0:00:43]}  Kg7 {[%clk 0:00:38]} 26. Kf1 {[%clk 0:00:43]}  Rac7 {[%clk 0:00:38]} 27. Ke2 {[%clk 0:00:42]}  Rc4 {[%clk 0:00:37]} 28. Nd3 {[%clk 0:00:37]}  Kf8 {[%clk 0:00:34]} 29. Ne5 {[%clk 0:00:31]}  Bxe5 {[%clk 0:00:27]} 30. fxe5 {[%clk 0:00:32]}  g5 {[%clk 0:00:27]} 31. Rd4 {[%clk 0:00:29]}  Kg7 {[%clk 0:00:21]} 32. Rg1 {[%clk 0:00:26]}  Kg6 {[%clk 0:00:20]} 33. f4 {[%clk 0:00:25]}  f6 {[%clk 0:00:02]} 34. exf6 {[%clk 0:00:22]}  Kxf6 {[%clk 0:00:00]} 35. Rxc4 {[%clk 0:00:18]} 1-0